Cogmind - Beta 15 @@@ ROGUE MODE // 2025.05.10 @ 00:45:45 Player: FloorSandwich Result: Self-destructed Performance ------------- Evolutions (2) 1000 Regions Visited (3) 600 Robots Destroyed (71) 355 Value Destroyed (1725) 1725 Prototype IDs (3) 60 Alien Tech Used (0) 0 Bonus (0) 0 TOTAL SCORE: 3740 Bonus ------- None Cogmind --------- Core Integrity 22/550 Matter 300/300 Energy 100/100 System Corruption 0% Temperature Cool (0) Movement Walking (90) Location -8/Materials Parts ------- > --- POWER (2) -------- (None) > --- PROPULSION (3) --- VSS Leg > --- UTILITY (4) ------ Advanced Visual Processing Unit Transport Network Coupler > --- WEAPON (2) ------- Power Maul > --- INVENTORY (5) ---- (None) Peak State ------------ > --- POWER ------------ Light Ion Engine > --- PROPULSION ------- Improved Carbon-fiber Leg > --- UTILITY ---------- High-capacity Matter Pod Visual Processing Unit Advanced Visual Processing Unit Hardened Medium Armor Plating > --- WEAPON ----------- Pulse Rifle Advanced Assault Cannon > --- INVENTORY -------- Transport Network Coupler Hacking Suite Grenade Launcher Power Maul [Rating: 21] Favorites ----------- Power Improved Ion Engine Engine Improved Ion Engine Propulsion Wheel Leg Improved Carbon-fiber Leg Wheel Wheel Flight Unit Cesium-ion Thruster Utility Signal Interpreter Device ECM Suite Storage High-capacity Matter Pod Processor Signal Interpreter Hackware Hacking Suite Protection Improved Light Armor Plating Weapon Light Assault Rifle Energy Gun Medium Laser Energy Cannon Ion Cannon Ballistic Gun Light Assault Rifle Ballistic Cannon Advanced Assault Cannon Launcher Grenade Launcher Impact Weapon Power Maul Build | -11 -10 -9 -8 ------- Run | Yrd Mat Mat Mat Slots Evolved 4 | . . 2 2 Power 1 | . . 1 . Propulsion 1 | . . . 1 Utility 2 | . . 1 1 Weapon . | . . . . Parts Attached 57 | 5 8 30 14 Power 13 | . 2 10 1 Engine 13 | . 2 10 1 Core . | . . . . Reactor . | . . . . Propulsion 14 | 2 2 7 3 Treads . | . . . . Leg 2 | . . . 2 Wheel 11 | 2 2 7 . Hover . | . . . . Flight 1 | . . . 1 Utility 13 | 1 2 5 5 Device 1 | . 1 . . Storage 5 | 1 . 4 . Processor 4 | . 1 1 2 Hackware 1 | . . . 1 Protection 2 | . . . 2 Artifact . | . . . . Weapon 17 | 2 2 8 5 Energy Gun 4 | 1 . 2 1 Energy Cannon 1 | . . . 1 Ballistic Gun 9 | 1 2 6 . Ballistic Cannon 1 | . . . 1 Launcher 1 | . . . 1 Special Weapon . | . . . . Impact Weapon 1 | . . . 1 Slashing Weapon . | . . . . Piercing Weapon . | . . . . Special Melee Weapon . | . . . . Unidentified Prototypes 1 | . . 1 . Parts Lost 25 | . 1 14 10 Power 5 | . . 3 2 Propulsion 8 | . . 6 2 Utility 4 | . . . 4 Weapon 8 | . 1 5 2 Highest Loss Streak 3 | . 1 3 3 To Critical Strikes 1 | . . 1 . Average Backups 3 | 3 2 3 2 Power . | 1 1 . . Propulsion . | . . . . Utility . | . . . 1 Weapon 1 | 1 . 2 1 Tool/Special . | . . . . Unused Backups 4 | . 1 2 1 Power 1 | . . 1 . Propulsion . | . . . . Utility 1 | . . . 1 Weapon 2 | . 1 1 . Tool/Special . | . . . . Average Slot Usage (%) 78 | . 77 89 57 Engine 13 | . 5 20 6 Wheel 15 | . 28 15 2 Device 2 | . 1 3 . Storage 10 | . 12 11 8 Processor 14 | . 1 18 17 Energy Gun 5 | . 10 4 4 Ballistic Gun 13 | . 16 16 3 Peak Build Rating 21 | 5 7 14 21 Average Rating 10 | 3 5 11 14 On Entrance 5 | . 5 7 11 Naked Turns . | . . . . Heaviest Build 24 | 9 14 22 24 Greatest Support 26 | 26 26 26 18 Greatest Overweight (x) 7 | . . 7 5 Average Overweight (x) . | . . 1 1 Largest Inventory Capacity 8 | 8 8 5 5 Average Capacity 5 | 6 7 5 5 Most Carried 5 | 5 5 5 5 Average Carried 3 | 3 2 3 2 Final Capacity 8 | 8 5 5 5 Final Carried 5 | 3 5 4 . Class Distribution -------------------- 61% | Mutant 38% | Scavenger-Mutant Dominant Class ---------------- Mutant | -10/Materials Scavenger-Mutant | -9/Materials Mutant | -8/Materials Resources | -11 -10 -9 -8 ----------- Run | Yrd Mat Mat Mat Matter Collected 1511 | 218 115 957 221 Remotely . | . . . . Salvage Created 2452 | . 358 1698 396 Parts 156 | . 29 112 15 Haulers Intercepted 3 | . . 3 . Recyclers Shooed 4 | . 1 3 . Parts Field Recycled . | . . . . Retrieved Matter . | . . . . Parts Self-Destructed . | . . . . Prevented . | . . . . Kills | -11 -10 -9 -8 ------- Run | Yrd Mat Mat Mat Combat Hostiles Destroyed 49 | . 11 28 10 Guns 43 | . 10 28 5 Cannons 4 | . . . 4 AOE 1 | . . . 1 Classes Destroyed 11 | . 5 5 1 Worker 7 | . 1 6 . Builder 4 | . . 4 . Hauler 3 | . . 3 . Recycler 4 | . 1 3 . Operator 2 | . . 2 . Watcher 2 | . 1 1 . Swarmer 14 | . 8 6 . Grunt 24 | . 3 15 6 Brawler 1 | . . 1 . Sentry 6 | . . 6 . Specialist 4 | . . . 4 Best Kill Streak 9 | . 9 8 3 Combat Bots Only 8 | . 8 4 3 Max Kills in Single Turn 2 | . 2 1 1 Gunslinging 1 | . 1 . . Exploded 1 | . . . 1 Melee . | . . . . Uniques/NPCs Destroyed . | . . . . Combat | -11 -10 -9 -8 -------- Run | Yrd Mat Mat Mat Hostile Shots Fired 392 | . 70 176 146 Missed 97 | . 21 35 41 Hits 295 | . 49 141 105 Melee 1 | . . 1 . Projectile 294 | . 49 140 105 AOE 1 | . . . 1 Critical Strikes 9 | . . 4 5 Damage Taken 3863 | . 446 1725 1692 Core 1013 | . 131 354 528 Absorbed by Shields . | . . . . Core Remaining (%) 52 | 100 47 11 . Volleys Fired 207 | . 38 131 38 Largest 2 | . 2 2 2 Hottest 103 | . 70 68 103 Shots Fired 339 | . 62 230 47 Gun 321 | . 62 230 29 Cannon 15 | . . . 15 Launcher 3 | . . . 3 Special . | . . . . Kinetic 247 | . 38 191 18 Thermal 50 | . 24 . 26 Explosive 3 | . . . 3 Electromagnetic 39 | . . 39 . Robot Hit Streak 13 | . 7 9 13 Robot Miss Streak 6 | . 5 6 3 Penetration Max . | . . . . Secondary Targets 2 | . 1 1 . Max Gunslinging Chain 1 | . 1 1 . Shots Hit Robots 240 | . 36 171 33 Core Hits 115 | . 23 75 17 Critical Kills . | . . . . Critical Parts Destroyed . | . . . . Critical Strikes 3 | . 3 . . Burn 3 | . 3 . . Melee Attacks 4 | . . . 4 Impact 4 | . . . 4 Slashing . | . . . . Piercing . | . . . . Sneak Attacks . | . . . . Combat Hostiles . | . . . . Follow-up Attacks . | . . . . Damage Inflicted 3518 | . 407 2292 819 Guns 3039 | . 407 2236 396 Cannons 217 | . . . 217 Explosions 251 | . . 46 205 Melee . | . . . . Ramming 11 | . . 10 1 Kinetic 2258 | . 207 1777 274 Thermal 585 | . 200 46 339 Explosive 205 | . . . 205 Electromagnetic 459 | . . 459 . Impact . | . . . . Slashing . | . . . . Piercing . | . . . . Highest Corruption 6 | . . 6 . Average Corruption 6 | . . 6 . Corruption Purged . | . . . . Corruption Blocked . | . . . . Effects 10 | . . 10 . Message Errors 1 | . . 1 . Matter Fused 2 | . . 2 . Heat Flow Errors 1 | . . 1 . Parts Rejected 1 | . . 1 . Data Loss (minor) 5 | . . 5 . Overload Shots . | . . . . Overflow Damage 8 | . . . 8 Projectiles 8 | . . . 8 Explosions . | . . . . Melee . | . . . . Knockbacks 1 | . . . 1 Impact . | . . . . Kinetic 1 | . . . 1 Secondary . | . . . . Self-Inflicted Damage 58 | . . 36 22 Shots 4 | . . 1 3 Rammed 5 | . . 4 1 Targets Rammed 5 | . . 4 1 Kicked . | . . . . Crushed . | . . . . Highest Temperature 269 | . 269 180 92 Average Temperature 45 | . 101 35 28 Received Heat Transfer 1101 | . 114 591 396 Siege Activations . | . . . . Martial Activations . | . . . . Shielding Activations . | . . . . Robots Disrupted . | . . . . Combat Hostiles . | . . . . Robots Corrupted . | . . . . Combat Hostiles . | . . . . Parts Fried 1 | . . 1 . Impact Corruptions . | . . . . Robots Melted 1 | . 1 . . Combat Hostiles 1 | . 1 . . Parts Melted 4 | . 2 1 1 Heat Transferred 1617 | . 814 100 703 Parts Sabotaged . | . . . . Parts Stolen . | . . . . Parts Stripped . | . . . . Power Chain Reactions 1 | . . 1 . Alert | -11 -10 -9 -8 ------- Run | Yrd Mat Mat Mat Maximum Alert Level 1 | . 1 1 . Low Security (%) 86 | 100 80 81 100 Level 1 13 | . 19 18 . Level 2 . | . . . . Level 3 . | . . . . Level 4 . | . . . . Level 5 . | . . . . High Security . | . . . . Max Security . | . . . . Peak Influence 255 | . 247 255 115 Initial 105 | . . 87 105 Average 88 | . 69 116 58 Influence Increases 1492 | . 347 848 297 Destroy 0b10 Robot/C 980 | . 220 560 200 Destroy 0b10 Robot/NC 110 | . 15 95 . Destroy Leader 240 | . 42 158 40 Successful Hack 26 | . 10 16 . Disable Machine 15 | . . . 15 Destroy Structure 16 | . . 4 12 Lose Combat Pursuer 105 | . 60 15 30 Influence Decreases 1461 | . 138 806 517 Entered New Map 268 | . . 122 146 Time Decay 953 | . 128 544 281 Lost Part 240 | . 10 140 90 Squads Dispatched 10 | . 2 5 3 Investigation 3 | . 1 2 . Extermination . | . . . . Reinforcement 7 | . 1 3 3 Assault . | . . . . Garrison . | . . . . Intercept . | . . . . Searches Triggered . | . . . . Construction Impeded 1 | . . . 1 Haulers Reinforced . | . . . . Active Scanning Responses . | . . . . Cargo Convoy Interrupts . | . . . . Stealth | -11 -10 -9 -8 --------- Run | Yrd Mat Mat Mat Distress Signals 4 | . 2 1 1 Communications Jammed . | . . . . Distress Signals . | . . . . Times Spotted 81 | . 19 42 20 Peak Tracking Total 8 | . 8 4 6 Tactical Retreats 7 | . 3 2 2 Traps | -11 -10 -9 -8 ------- Run | Yrd Mat Mat Mat Traps Triggered 1 | . . 1 . Indirectly . | . . . . Trap Hack Attempts . | . . . . Triggered . | . . . . Disarmed 4 | . . 4 . Reprogrammed . | . . . . Reused . | . . . . Traps Extracted . | . . . . Installed . | . . . . Triggered . | . . . . Machines | -11 -10 -9 -8 ---------- Run | Yrd Mat Mat Mat Machines Disabled 2 | . . 1 1 Max in Single Turn 1 | . . 1 1 Machines Repaired . | . . . . Machines Dismantled . | . . . . Machines Sabotaged . | . . . . Overloaded Fab Kills . | . . . . Hacking | -11 -10 -9 -8 --------- Run | Yrd Mat Mat Mat Machines Accessed 12 | . 3 8 1 Terminals 9 | . 3 5 1 Fabricators . | . . . . Repair Stations . | . . . . Recycling Units 1 | . . 1 . Scanalyzers 2 | . . 2 . Garrison Access . | . . . . Total Hacks 44 | . 10 29 5 Successful 22 | . 3 19 . Failed 22 | . 7 10 5 Catastrophic 2 | . . 1 1 Database Lockouts . | . . . . Manual . | . . . . Terminals 32 | . 10 17 5 Fabricators . | . . . . Repair Stations . | . . . . Recycling Units 7 | . . 7 . Scanalyzers 5 | . . 5 . Garrison Access . | . . . . Terminal Hacks 13 | . 3 10 . Prototype ID Bank 1 | . . 1 . Alert Level 3 | . 1 2 . Locate Traps 1 | . . 1 . Disarm Traps 1 | . . 1 . Dispatch Records 1 | . . 1 . Surveillance Status 1 | . . 1 . Investigation Status 1 | . 1 . . Reinforcement Status 1 | . . 1 . Hauler Manifests 2 | . 1 1 . Zone Layout 1 | . . 1 . Fabricator Hacks . | . . . . Repair Station Hacks . | . . . . Recycling Unit Hacks 4 | . . 4 . Recycle Component 1 | . . 1 . Process 1 | . . 1 . Report Inventory 1 | . . 1 . Retrieve Matter 1 | . . 1 . Scanalyzer 5 | . . 5 . Insert Component 2 | . . 2 . Analyze 3 | . . 3 . Garrison Access Hacks . | . . . . Unauthorized Hacks . | . . . . Terminals . | . . . . Fabricators . | . . . . Repair Stations . | . . . . Recycling Units . | . . . . Scanalyzers . | . . . . Garrison Access . | . . . . Data Cores Recovered . | . . . . Used . | . . . . Hacking Detections 9 | . 3 5 1 Full Trace Events 5 | . 2 3 . Feedback Events . | . . . . Feedback Blocked . | . . . . Robot Schematics Acquired . | . . . . Robots Built . | . . . . Authchips . | . . . . Time . | . . . . Total Robot Build Rating . | . . . . Part Schematics Acquired 2 | . . 2 . Parts Built . | . . . . Authchips . | . . . . Time . | . . . . Total Part Build Rating . | . . . . Parts Repaired . | . . . . Time . | . . . . Parts Recycled 1 | . . 1 . Recycled Matter 15 | . . 15 . Retrieved Matter 15 | . . 15 . Retrieved Components . | . . . . Parts Scanalyzed 2 | . . 2 . Part Schematics Acquired 2 | . . 2 . Parts Damaged . | . . . . Bothacking | -11 -10 -9 -8 ------------ Run | Yrd Mat Mat Mat Used RIF Installer . | . . . . Robots Hacked . | . . . . Non-combat . | . . . . Combat . | . . . . Robot Hacks Applied . | . . . . Relay Couplers Released . | . . . . Fabnet Peak Effective % . | . . . . Robots Rewired . | . . . . Allies Hacked . | . . . . Hacks Repelled . | . . . . Allies | -11 -10 -9 -8 -------- Run | Yrd Mat Mat Mat Total Allies . | . . . . Largest Group . | . . . . Highest-Rated Group . | . . . . Highest-Rated Ally . | . . . . Total Orders . | . . . . Ally Attacks . | . . . . Total Damage . | . . . . Kills . | . . . . Allies Corrupted . | . . . . Allies Melted . | . . . . Intel | -11 -10 -9 -8 ------- Run | Yrd Mat Mat Mat Active Infowar (turns) 2403 | . 76 1588 739 Optics 1767 | . . 1028 739 T.N.C. 281 | . . . 281 ECM 636 | . 76 560 . Robot Analysis Total . | . . . . Derelict Logs Recovered . | . . . . Drone Launches . | . . . . Drone Recoveries . | . . . . Exploration | -11 -10 -9 -8 ------------- Run | Yrd Mat Mat Mat Turns Passed 3149 | 97 725 1588 739 Spaces Moved 1699 | 87 269 1052 291 Core 100 | 13 . 14 73 Treads . | . . . . Legs 145 | . . . 145 Wheels 1442 | 74 269 1038 61 Hover . | . . . . Flight 12 | . . . 12 Fastest Speed 50 | 50 80 80 80 Average Speed 106 | 84 84 97 167 Slowest Speed 400 | 90 90 400 300 Overloaded Moves . | . . . . Propulsion Burnouts . | . . . . Robots Hopped . | . . . . Potential Cave-ins . | . . . . Cave-ins Triggered . | . . . . Exploration Rate (%) 29 | 6 32 67 13 Regions Visited 3 Branch Regions . Pre-discovered Areas . | . . . . Known Exits Taken 2 | . 1 1 . Unknown Exits Taken 1 | 1 . . . Scrap Searched . | . . . . Spaces Dug 1 | . . . 1 Terrain Destroyed 13 | . . 2 11 Melee 1 | . . . 1 Projectile 2 | . . . 2 AOE 10 | . . 2 8 Terrain Rammed . | . . . . Walls Destroyed . | . . . . Machines Disabled . | . . . . Actions | -11 -10 -9 -8 --------- Run | Yrd Mat Mat Mat Total 2722 | 110 711 1410 491 Wait 671 | 11 380 158 122 Move 1696 | 86 268 1051 291 Hop . | . . . . Pick Up 47 | 8 11 18 10 Fast Attach 7 | . . 6 1 Attach 34 | 5 5 10 14 Detach 3 | . . . 3 Swap 19 | . 3 16 . Drop 29 | . 6 16 7 Fire 207 | . 38 131 38 Melee 4 | . . . 4 Ram 5 | . . 4 1 Kick . | . . . . Crush . | . . . . Escape Stasis . | . . . . Rewire . | . . . . Trap . | . . . . Miscellaneous . | . . . . Route ------- -11/Scrapyard -10/Materials -9/Materials (discovered 2 exits: *Mat / *Min) -8/Materials (discovered 1 exit: [*Sto]) History --------- Turn | Location | Event 16 | -11/Scrapyard | Discovered new exit (range 15) 98 | -11/Scrapyard | Entered Materials 308 | -10/Materials | Build established: Mutant 643 | -10/Materials | Destroyed 8 combat bots 706 | -10/Materials | Core integrity fell below 50% 751 | -10/Materials | Discovered new exit (range 8) 770 | -10/Materials | Identified exit to Materials 823 | -10/Materials | Entered another Materials area 823 | -9/Materials | Evolved 2 slots: Power x1, Utility x1 950 | -9/Materials | Lost 3 parts (1p2w) 1402 | -9/Materials | Discovered new exit (range 10) 1629 | -9/Materials | Discovered new exit (range 11) 1647 | -9/Materials | Build established: Scavenger-Mutant 1649 | -9/Materials | Identified exit to Mines 1697 | -9/Materials | Core integrity fell below 50% 2184 | -9/Materials | Core integrity fell below 20% 2394 | -9/Materials | Build established: Mutant 2400 | -9/Materials | Identified exit to Materials 2411 | -9/Materials | Entered another Materials area 2411 | -8/Materials | Evolved 2 slots: Propulsion x1, Utility x1 2819 | -8/Materials | Lost 3 parts (1p1n1u) 2883 | -8/Materials | Core integrity fell below 50% 3124 | -8/Materials | Discovered new exit (range 13) 3137 | -8/Materials | Core integrity fell below 20% 3150 | -8/Materials | Self-destructed Last Messages --------------- R-06 Scavenger collects Hrd. Medium Armor Plating. U-05 Engineer builds a Wall. U-05 Engineer lays Concrete. U-05 Engineer builds a Wall. Dropped Cesium-ion Thruster. R-06 Scavenger collects Cesium-ion Thruster. U-05 Engineer lays Concrete. U-05 Engineer builds a Wall. U-05 Engineer lays Concrete. U-05 Engineer builds a Wall. U-05 Engineer lays Concrete. U-05 Engineer builds a Door. Acquired 35 matter. U-05 Engineer lays Concrete. The unstable cave ceiling collapses. EXIT=FOUND Hacking Suite destroyed. Hcp. Matter Pod destroyed. S-10 Pest destroyed. Ion Cannon destroyed. Map ----- +----------------------------------------------------+ | ?????????????????????????????????????????????????? | | ?????????????????????????????????????????????????? | | ?????????????????????????????????????????????????? | | ?????????????????????????????????????????????????? | | ?????????????????????????????????????????????????? | | ?????????????????????????????????????????????????? | | ?????????????????????????????????????????????????? | | ?????????????????????????????????????????????????? | | ?????????????????????????????????????????????????? | | ?????????????????????????????????????????????????? | | ?????????????????????????????????????????????????? | | ????????a??????????######???????????????#####????? | | ??????????????????## ?????????????? ?????? | | ?????????????a????? ?????????????? ?????? | | ??????????????????? < ?????????????? H ?????? | | ???????????????????? ?????????????? ?????? | | ???????????????????? ??????????a??? ?????? | | ????????????????????# #??????????????# #?????? | | ????????????????????# #??????????????# #?????? | | ????????????????????# #??????????????# #?????? | | ????????????????????# #??????????????# #?????? | | ????????????????????#w #??????????????# #?????? | | ????????????????????# Y #??????????????# #?????? | | ???????????????????## s ################ #?##### | | ????????????##+##### % #?# | | ????????????# @ #?#] | | ????????????# Ts #?# " | | ????????????# s #######;####### %r#?# " | | ????????????# #### #????# # % #?# " | | ????????????# ?????#######????#"" # #?# %% | | ??????????????????????????????#"" # ####### | | ??????????????????????????????#""" # | | ??????????????????????????????#"" + | | ??????????????????????????????#" # | | ??????????????????????????????#"""" ####+### | | ??????????????????????????????#""""" # # | | ??????????????????????????????# # """" # ]! | | ??????????????????????????????########## """" #]]! | | ??????????????????????????????????##???# """" #### | | ???????????????????????????????????????# #??? | | ???????????????????????????????????????# !#??? | | ???????????????????????????????????????########??? | | ?????????????????????????????????????????????????? | | ?????????????????????????????????????????????????? | | ?????????????????????????????????????????????????? | | ?????????????????????????????????????????????????? | | ?????????????????????????????????????????????????? | | | | | | | +----------------------------------------------------+ Best States ------------- Heat Dissipation 31 Energy Generation 23 Energy Capacity 430 Matter Stores 500 Matter Capacity 500 Sight Range 20 Terrain Scan Density 10 ECM Strength 1 Armor Coverage 225 Evasion (%) 55 Offensive Hacking 10 Item Schematics ----------------- Shotgun | -9/Materials | Scanalyzed Hvy. Assault Rifle | -9/Materials | Scanalyzed Robot Schematics ------------------ None Fabricated ------------ Nothing Repaired ---------- Nothing Alien Tech Used ----------------- None Achievements -------------- None Challenges ------------ None Game ------ Seed AerolevNovaShifter Manual? 0 Play Time 00:25:18 Cumulative 6.9 hours Start 2025.05.10 @ 00:20:27 End 2025.05.10 @ 00:45:45 Sessions 1 Manual Loads 0 Difficulty Rogue Special Mode None Game No. 27 Rogue 27 Adventurer 0 Explorer 0 Win Type - Total 0 Types 0/0/0/0/0/0/0/0/0/0 Lore% 6 Gallery% 12 Achievement% 11 Wizard Run 0 Options --------- Layout 0 ASCII 0 Keyboard 0 Movement Arrows Keybinds 0 Fullscreen 1 Font 24/Smallcaps Map View 56x25 Zoom Use 100% Tactical HUD 0 Map Filters NONE Filters NONE Steam 1 RUN: e211b15a-cdda-4cac-b5f4-8d146b6b7167